fUST/lending_fUST_20250730
["ID","MTS","AMOUNT","RATE_DAILY","PERIOD"]
[376016521,1753822240220,-160.0,0.00019282,2]
[376016522,1753822240231,-526.67226028,0.00019282,2]
[376016523,1753822240240,-160.0,0.00019282,2]
[376016524,1753822240250,-214.91980558,0.00019282,2]
[376016525,1753822240259,-216.1031716,0.00019282,2]
[376016526,1753822240270,-160.0,0.00019286,2]
[376016527,1753822240280,-176.11827439,0.00019286,2]
[376016528,1753822240290,-460.0,0.00019286,2]
[376016529,1753822240299,-460.0,0.00019286,2]
[376016530,1753822240313,-1071.61,0.00019286,2]
[376016531,1753822240322,-460.0,0.00019287,2]
[376016532,1753822240332,-460.0,0.00019287,2]
[376016533,1753822240341,-558.73,0.00019287,2]
[376016534,1753822240350,-460.0,0.00019287,2]
[376016535,1753822240361,-460.0,0.00019287,2]
[376016536,1753822240370,-460.0,0.00019287,2]
[376016537,1753822240380,-460.0,0.00019287,2]
[376016538,1753822240390,-539.65,0.00019287,2]
[376016539,1753822240399,-4858.1,0.00019287,2]
[376016541,1753822240408,-464.87933151,0.00019287,2]
[376016542,1753822240418,-460.0,0.00019287,2]
[376016544,1753822240427,-198.24,0.00019287,2]
[376016546,1753822240437,-460.0,0.00019287,2]
[376016548,1753822240446,-460.0,0.00019287,2]
[376016549,1753822240456,-460.0,0.00019287,2]
[376016551,1753822240465,-460.0,0.00019287,2]
[376016553,1753822240475,-460.0,0.00019287,2]
[376016557,1753822240662,-2162.57,0.00019287,2]
[376016558,1753822240679,-460.0,0.00019287,2]
[376016560,1753822240689,-460.0,0.00019287,2]
[376016562,1753822240700,-460.0,0.00019287,2]
[376016564,1753822240710,-564.86,0.00019287,2]
[376016566,1753822240719,-460.0,0.00019287,2]
[376016568,1753822240728,-1227.92,0.00019287,2]
[376016570,1753822240741,-460.0,0.00019287,2]
[376016572,1753822240751,-1440.14,0.00019287,2]
[376016574,1753822240760,-460.0,0.00019287,2]
[376016576,1753822240769,-460.0,0.00019287,2]
[376016578,1753822240779,-460.0,0.00019287,2]
[376016580,1753822240788,-827.48,0.00019287,2]
[376016581,1753822240797,-490.87,0.00019287,2]
[376016584,1753822240807,-460.0,0.00019287,2]
[376016586,1753822240818,-460.0,0.00019287,2]
[376016587,1753822240828,-460.0,0.00019287,2]
[376016590,1753822240837,-460.0,0.00019287,2]
[376016591,1753822240846,-460.0,0.00019287,2]
[376016593,1753822240856,-460.0,0.00019287,2]
[376016596,1753822240866,-460.0,0.00019287,2]
[376016598,1753822240875,-583.15,0.00019287,2]
[376016600,1753822240885,-460.0,0.00019288,2]
[376016601,1753822240894,-460.0,0.00019288,2]
[376016604,1753822240903,-460.0,0.00019288,2]
[376016605,1753822240913,-461.58316653,0.00019288,2]
[376016607,1753822240922,-460.0,0.00019288,2]
[376016610,1753822240932,-460.0,0.00019288,2]
[376016612,1753822240941,-164.26348748,0.00019288,2]
[376016614,1753822240951,-460.0,0.00019288,2]
[376016616,1753822240960,-460.0,0.00019288,2]
[376016618,1753822240970,-460.0,0.00019288,2]
[376016620,1753822240979,-330.94,0.00019288,2]
[376016621,1753822240988,-587.84,0.00019288,2]
[376016624,1753822240998,-1365.28,0.00019288,2]
[376016626,1753822241008,-917.67,0.00019288,2]
[376016628,1753822241022,-460.0,0.00019288,2]
[376016630,1753822241032,-850.05,0.00019288,2]
[376016632,1753822241041,-451.09328201,0.00019289,2]
[376016634,1753822241050,-460.0,0.00019289,2]
[376016635,1753822241059,-460.0,0.00019289,2]
[376016638,1753822241070,-231.22660135,0.00019289,2]
[376016640,1753822241080,-460.0,0.00019289,2]
[376016642,1753822241089,-460.0,0.00019289,2]
[376016644,1753822241099,-312.21,0.00019289,2]
[376016646,1753822241109,-460.0,0.00019289,2]
[376016648,1753822241118,-460.0,0.00019289,2]
[376016650,1753822241128,-1233.42,0.00019289,2]
[376016652,1753822241138,-460.0,0.00019289,2]
[376016654,1753822241148,-460.0,0.00019289,2]
[376016656,1753822241158,-4914.18,0.0001929,2]
[376016658,1753822241167,-901.94,0.0001929,2]
[376016660,1753822241176,-1189.61,0.00019291,2]
[376016662,1753822241186,-891.77,0.00019293,2]
[376016664,1753822241196,-1697.76,0.00019293,2]
[376016666,1753822241206,-460.0,0.00019293,2]
[376016668,1753822241216,-460.5085953,0.00019298,2]
[376016670,1753822241226,-520.27,0.00019332,3]
[376016672,1753822241239,-260.14,0.00019332,3]
[376016674,1753822241249,-780.44,0.00019332,3]
[376016676,1753822241258,-156.529591,0.00019349,2]
[376016678,1753822241272,-200.0,0.00019391,15]
[376016680,1753822241282,-200.0,0.00019391,15]
[376016682,1753822241291,-200.0,0.00019391,15]
[376016684,1753822241301,-200.0,0.00019391,15]
[376016687,1753822241312,-402.1673859,0.0001956,2]
[376016689,1753822241322,-460.0,0.0001956,2]
[376016691,1753822241331,-1071.61,0.0001956,2]
[376016693,1753822241341,-460.0,0.00019561,2]
[376016695,1753822241351,-240.06,0.00019561,2]
[376016696,1753822241361,-460.0,0.00019561,2]
[376016698,1753822241370,-460.0,0.00019561,2]
[376016700,1753822241380,-3886.56789818,0.00019561,2]
[376016840,1753822242780,-971.53210182,0.00019561,2]
[376016841,1753822242790,-460.0,0.00019561,2]
[376016842,1753822242799,-460.0,0.00019561,2]
[376016843,1753822242809,-460.0,0.00019561,2]
[376016844,1753822242819,-460.0,0.00019561,2]
[376016845,1753822242833,-460.0,0.00019561,2]
[376016846,1753822242843,-460.0,0.00019561,2]
[376016848,1753822242852,-2162.57,0.00019561,2]
[376016850,1753822242862,-460.0,0.00019561,2]
[376016852,1753822242871,-460.0,0.00019561,2]
[376016854,1753822242881,-460.0,0.00019561,2]
[376016857,1753822242891,-564.86,0.00019561,2]
[376016858,1753822242900,-460.0,0.00019561,2]
[376016860,1753822242910,-460.0,0.00019561,2]
[376016862,1753822242920,-1227.92,0.00019561,2]
[376016864,1753822242930,-1440.14,0.00019561,2]
[376016866,1753822242939,-460.0,0.00019561,2]
[376016867,1753822242949,-460.0,0.00019561,2]
[376016868,1753822242958,-460.0,0.00019561,2]
[376016870,1753822242968,-827.48,0.00019561,2]
[376016872,1753822242977,-490.87,0.00019561,2]
[376016874,1753822242986,-460.0,0.00019561,2]
[376016876,1753822242995,-460.0,0.00019561,2]
[376016877,1753822243005,-460.0,0.00019561,2]
[376016878,1753822243014,-460.0,0.00019561,2]
[376016881,1753822243023,-460.0,0.00019561,2]
[376016883,1753822243032,-460.0,0.00019561,2]
[376016884,1753822243041,-460.0,0.00019561,2]
[376016885,1753822243051,-583.15,0.00019561,2]
[376016886,1753822243060,-460.0,0.00019562,2]
[376016887,1753822243069,-460.0,0.00019562,2]
[376016888,1753822243078,-460.0,0.00019562,2]
[376016889,1753822243087,-460.0,0.00019562,2]
[376016890,1753822243096,-587.84,0.00019562,2]
[376016891,1753822243105,-1365.28,0.00019562,2]
[376016893,1753822243115,-917.67,0.00019562,2]
[376016894,1753822243124,-460.0,0.00019562,2]
[376016895,1753822243133,-850.05,0.00019562,2]
[376016896,1753822243142,-460.0,0.00019563,2]
[376016897,1753822243151,-503.94197318,0.00019563,2]
[376016898,1753822243161,-460.0,0.00019563,2]
[376016899,1753822243170,-1233.42,0.00019563,2]
[376016900,1753822243179,-460.0,0.00019563,2]
[376016901,1753822243188,-460.0,0.00019563,2]
[376016902,1753822243197,-4914.18,0.00019564,2]
[376016903,1753822243206,-901.94,0.00019564,2]
[376016904,1753822243216,-1189.61,0.00019565,2]
[376016905,1753822243226,-151.0,0.00019566,2]
[376016906,1753822243235,-891.77,0.00019567,2]
[376016907,1753822243244,-1697.76,0.00019567,2]
[376016908,1753822243253,-460.0,0.00019567,2]
[376016909,1753822243262,-500.0,0.00019596,2]
[376016910,1753822243274,-500.0,0.00019596,2]
[376016911,1753822243283,-500.0,0.00019621,2]
[376016912,1753822243293,-150.608819,0.00019726,2]
[376016913,1753822243302,-168.93416293,0.00019739,2]
[376016914,1753822243311,-1086.5,0.00019788,3]
[376016915,1753822243321,-500.0,0.0001981,2]
[376016916,1753822243330,-460.0,0.00019834,2]
[376016917,1753822243339,-1071.61,0.00019834,2]
[376016918,1753822243349,-460.0,0.00019835,2]
[376016919,1753822243358,-166.99,0.00019835,2]
[376016920,1753822243367,-460.0,0.00019835,2]
[376016921,1753822243376,-4858.1,0.00019835,2]
[376016922,1753822243386,-460.0,0.00019835,2]
[376016923,1753822243395,-460.0,0.00019835,2]
[376016924,1753822243405,-460.0,0.00019835,2]
[376016925,1753822243415,-460.0,0.00019835,2]
[376016926,1753822243424,-460.0,0.00019835,2]
[376016927,1753822243433,-460.0,0.00019835,2]
[376016928,1753822243442,-2162.57,0.00019835,2]
[376016929,1753822243451,-460.0,0.00019835,2]
[376016930,1753822243460,-460.0,0.00019835,2]
[376016931,1753822243470,-564.86,0.00019835,2]
[376016932,1753822243479,-460.0,0.00019835,2]
[376016933,1753822243489,-460.0,0.00019835,2]
[376016934,1753822243498,-1227.92,0.00019835,2]
[376016935,1753822243507,-1440.14,0.00019835,2]
[376016936,1753822243520,-460.0,0.00019835,2]
[376016937,1753822243529,-460.0,0.00019835,2]
[376016939,1753822243539,-460.0,0.00019835,2]
[376016941,1753822243548,-827.48,0.00019835,2]
[376016942,1753822243557,-490.87,0.00019835,2]
[376016943,1753822243567,-460.0,0.00019835,2]
[376016944,1753822243576,-460.0,0.00019835,2]
[376016945,1753822243586,-460.0,0.00019835,2]
[376016946,1753822243595,-460.0,0.00019835,2]
[376016947,1753822243604,-460.0,0.00019835,2]
[376016948,1753822243614,-460.0,0.00019835,2]
[376016950,1753822243623,-583.15,0.00019835,2]
[376016952,1753822243632,-460.0,0.00019836,2]
[376016954,1753822243641,-460.0,0.00019836,2]
[376016955,1753822243650,-460.0,0.00019836,2]
[376016956,1753822243660,-587.84,0.00019836,2]
[376016957,1753822243669,-1365.28,0.00019836,2]
[376016958,1753822243678,-917.67,0.00019836,2]
[376016959,1753822243687,-460.0,0.00019836,2]
[376016960,1753822243697,-850.05,0.00019836,2]
[376016961,1753822243706,-557.8,0.00019837,2]
[376016962,1753822243715,-460.0,0.00019837,2]
[376016963,1753822243724,-460.0,0.00019837,2]
[376016965,1753822243734,-1233.42,0.00019837,2]
[376016967,1753822243748,-460.0,0.00019837,2]
[376016969,1753822243758,-4914.18,0.00019838,2]
[376016972,1753822243770,-901.94,0.00019838,2]
[376016974,1753822243780,-181.2,0.00019839,2]
[376016976,1753822243789,-1189.61,0.00019839,2]
[376016978,1753822243799,-891.77,0.00019841,2]
[376016980,1753822243808,-1697.76,0.00019841,2]
[376016982,1753822243820,-460.0,0.00019841,2]
[376016984,1753822243830,-1402.30041382,0.000199,2]
[376016985,1753822243839,-1086.5,0.00020032,3]
[376016986,1753822243848,-1402.30041363,0.00020038,2]
[376016987,1753822243857,-460.0,0.00020108,2]
[376016989,1753822243866,-1071.61,0.00020108,2]
[376016991,1753822243875,-460.0,0.00020109,2]
[376016993,1753822243885,-314.79469727,0.00020109,2]
[376016995,1753822243894,-4858.1,0.00020109,2]
[376016997,1753822243905,-460.0,0.00020109,2]
[376017000,1753822243915,-460.0,0.00020109,2]
[376017001,1753822243924,-544.65,0.00020109,2]
[376017003,1753822243934,-460.0,0.00020109,2]
[376017005,1753822243943,-460.0,0.00020109,2]
[376017008,1753822243952,-460.0,0.00020109,2]
[376017010,1753822243962,-2162.57,0.00020109,2]
[376017012,1753822243971,-460.0,0.00020109,2]
[376017014,1753822243980,-574.73,0.00020109,2]
[376017016,1753822243989,-564.86,0.00020109,2]
[376017017,1753822243998,-460.0,0.00020109,2]
[376017019,1753822244008,-460.0,0.00020109,2]
[376017022,1753822244019,-1227.92,0.00020109,2]
[376017024,1753822244029,-1440.14,0.00020109,2]
[376017026,1753822244038,-460.0,0.00020109,2]
[376017027,1753822244047,-460.0,0.00020109,2]
[376017029,1753822244056,-436.90066078,0.00020109,2]
[376017031,1753822244065,-827.48,0.00020109,2]
[376017033,1753822244074,-490.87,0.00020109,2]
[376017035,1753822244084,-460.0,0.00020109,2]
[376017037,1753822244093,-460.0,0.00020109,2]
[376017039,1753822244102,-460.0,0.00020109,2]
[376017041,1753822244111,-460.0,0.00020109,2]
[376017044,1753822244121,-460.0,0.00020109,2]
[376017045,1753822244131,-460.0,0.00020109,2]
[376017047,1753822244140,-583.15,0.00020109,2]
[376017050,1753822244150,-460.0,0.0002011,2]
[376017051,1753822244159,-460.0,0.0002011,2]
[376017053,1753822244168,-460.0,0.0002011,2]
[376017055,1753822244177,-587.84,0.0002011,2]
[376017057,1753822244186,-1365.28,0.0002011,2]
[376017059,1753822244196,-917.67,0.0002011,2]
[376017061,1753822244206,-460.0,0.0002011,2]
[376017076,1753822244336,-850.05,0.0002011,2]
[376017078,1753822244348,-460.0,0.00020111,2]
[376017080,1753822244357,-460.0,0.00020111,2]
[376017082,1753822244367,-1233.42,0.00020111,2]
[376017084,1753822244376,-460.0,0.00020111,2]
[376017086,1753822244386,-4914.18,0.00020112,2]
[376017088,1753822244395,-901.94,0.00020112,2]
[376017090,1753822244405,-1189.61,0.00020113,2]
[376017092,1753822244414,-891.77,0.00020115,2]
[376017094,1753822244423,-1697.76,0.00020115,2]
[376017096,1753822244432,-460.0,0.00020115,2]
[376017098,1753822244441,-413.19332865,0.00020144,2]
[376017100,1753822244450,-900.0,0.00020174,2]
[376017102,1753822244459,-1402.30041363,0.00020176,2]
[376017104,1753822244468,-357.059112,0.00020187,2]
[376017106,1753822244478,-160.0,0.00020214,2]
[376017108,1753822244487,-168.0,0.00020272,2]
[376017110,1753822244496,-168.0,0.00020272,2]
[376017112,1753822244506,-1086.5,0.00020276,3]
[376017114,1753822244516,-497.99391524,0.00020283,2]
[376017130,1753822244665,-1544.21028227,0.00020283,2]
[376017968,1753822259179,676.45,0.00018742,2]
[376017969,1753822268268,892.21,0.00018745,2]
[376017970,1753822369575,3685.64,0.00018744,2]
[376017971,1753822394533,923.62,0.00018743,2]
[376017972,1753822409162,3841.57,0.00018744,2]
[376017973,1753822416372,1354.49,0.00018742,2]
[376017974,1753822437095,910.23,0.00018744,2]
[376017975,1753822453732,1298.06,0.00018742,2]
[376017976,1753822462922,460.0,0.00018742,2]
[376017977,1753822474663,948.84,0.00018745,2]
[376017978,1753822475890,923.8,0.00018744,2]
[376017979,1753822504903,460.0,0.00018742,2]
[376017981,1753822556682,999.23,0.00018742,2]
[376017982,1753822572202,763.21,0.00018744,2]
[376017983,1753822597588,957.6,0.00018742,2]
[376017984,1753822602634,731.41,0.00018744,2]
[376017985,1753822617557,800.0,0.00015876,2]
[376017986,1753822621158,800.0,0.00017246,2]
[376017987,1753822625453,800.0,0.00018342,2]
[376017988,1753822645418,5000.0,0.0001879,2]
[376017989,1753822722848,460.0,0.00018744,2]
[376017990,1753822757523,909.3,0.00018742,2]
[376017991,1753822758611,1243.97,0.00018744,2]
[376017994,1753822802568,1192.14,0.00018744,2]
[376017995,1753822803513,871.42,0.00018742,2]
[376017996,1753822808307,460.0,0.00018744,2]
[376017997,1753822854498,460.0,0.00018744,2]
[376017998,1753822907480,917.7,0.00018744,2]
[376017999,1753822943449,879.46,0.00018744,2]
[376018000,1753822967941,-150.0,0.000189,2]
[376018001,1753822967967,-300.0,0.00018903,2]
[376018002,1753822967994,-9583.07657925,0.00018904,2]
[376018003,1753822968018,-500.0,0.00018904,2]
[376018004,1753822968044,-2030.296672,0.00018904,2]
[376018005,1753822968069,-632.28826371,0.00018904,2]
[376018006,1753822968096,-151.0,0.00018904,2]
[376018007,1753822968123,-151.0,0.00018904,2]
[376018008,1753822968149,-151.0,0.00018904,2]
[376018009,1753822968174,-503.97,0.00018913,2]
[376018010,1753822968200,-1932.51,0.00018914,2]
[376018011,1753822968225,-460.0,0.00018914,2]
[376018012,1753822968252,-1309.54,0.00018914,2]
[376018013,1753822968279,-758.16,0.00018914,2]
[376018014,1753822968304,-460.0,0.00018914,2]
[376018015,1753822968330,-460.0,0.00018914,2]
[376018016,1753822968356,-460.0,0.00018914,2]
[376018017,1753822968382,-460.0,0.00018914,2]
[376018018,1753822968408,-460.0,0.00018914,2]
[376018019,1753822968434,-460.0,0.00018914,2]
[376018020,1753822968459,-460.0,0.00018914,2]
[376018021,1753822968485,-493.01,0.00018914,2]
[376018022,1753822968511,-1037.47,0.00018914,2]
[376018023,1753822968536,-564.9008632,0.00018914,2]
[376018024,1753822968562,-4379.61,0.00018914,2]
[376018025,1753822968588,-460.0,0.00018914,2]
[376018026,1753822968613,-153.25463075,0.00018914,2]
[376018027,1753822968639,-609.24,0.00018914,2]
[376018028,1753822968664,-20469.67299109,0.00018915,2]
[376018029,1753823011899,1000.0,0.00018014,2]
[376018030,1753823040064,5000.0,0.0001879,2]
[376018033,1753823121174,898.8,0.00018744,2]
[376018038,1753823172718,861.35,0.00018744,2]
[376018039,1753823220821,365.038207,0.00013699,2]
[376018051,1753823432784,-150.0,0.000189,2]
[376018052,1753823432794,-460.0,0.00018913,2]
[376018053,1753823432803,-568.54252481,0.00018913,2]
[376018054,1753823432840,-1283.44747519,0.00018913,2]
[376018055,1753823432849,-460.0,0.00018913,2]
[376018056,1753823432859,-4197.13,0.00018913,2]
[376018057,1753823432868,-1495.74,0.00018913,2]
[376018058,1753823432878,-778.11,0.00018913,2]
[376018059,1753823432887,-460.0,0.00018913,2]
[376018060,1753823432896,-460.0,0.00018913,2]
[376018062,1753823432906,-460.0,0.00018913,2]
[376018064,1753823432915,-994.24,0.00018913,2]
[376018066,1753823432924,-307.59504346,0.00018913,2]
[376018067,1753823432934,-460.0,0.00018913,2]
[376018068,1753823432943,-460.0,0.00018913,2]
[376018070,1753823432952,-1049.81,0.00018913,2]
[376018071,1753823432961,-460.0,0.00018913,2]
[376018072,1753823432971,-472.47,0.00018913,2]
[376018073,1753823432981,-460.0,0.00018913,2]
[376018074,1753823432993,-460.0,0.00018914,2]
[376018075,1753823433002,-460.0,0.00018914,2]
[376018076,1753823433012,-460.0,0.00018914,2]
[376018078,1753823433022,-460.0,0.00018914,2]
[376018080,1753823433031,-460.0,0.00018914,2]
[376018082,1753823433040,-460.0,0.00018914,2]
[376018084,1753823433050,-460.0,0.00018914,2]
[376018086,1753823433060,-460.0,0.00018914,2]
[376018087,1753823433070,-562.0,0.00018914,2]
[376018088,1753823433079,-460.0,0.00018914,2]
[376018089,1753823433088,-460.0,0.00018914,2]
[376018090,1753823433099,-460.0,0.00018914,2]
[376018091,1753823433109,-457.66871325,0.00018914,2]
[376018092,1753823433122,-8.583556,0.00018914,2]
[376018094,1753823433136,-460.0,0.00018914,2]
[376018096,1753823433146,-375.45205965,0.00018914,2]
[376018294,1753823438900,-84.54794035,0.00018914,2]
[376018295,1753823438910,-460.0,0.00018914,2]
[376018296,1753823438919,-92.60258682,0.00018914,2]
[376018297,1753823439061,-367.39741318,0.00018914,2]
[376018298,1753823439071,-460.0,0.00018914,2]
[376018299,1753823439081,-460.0,0.00018914,2]
[376018300,1753823439091,-460.0,0.00018914,2]
[376018301,1753823439101,-460.0,0.00018914,2]
[376018302,1753823439111,-1162.64,0.00018914,2]
[376018303,1753823439120,-1311.32,0.00018914,2]
[376018305,1753823439132,-460.0,0.00018914,2]
[376018306,1753823439142,-460.0,0.00018914,2]
[376018308,1753823439151,-460.0,0.00018914,2]
[376018310,1753823439160,-460.0,0.00018914,2]
[376018311,1753823439170,-633.56084233,0.00018915,2]
[376018312,1753823439180,-1771.345328,0.00019001,2]
[376018313,1753823439189,-460.0,0.00019011,2]
[376018314,1753823439200,-460.0,0.00019011,2]
[376018315,1753823439210,-443.40338464,0.00019011,2]
[376018316,1753823439221,-460.0,0.00019011,2]
[376018317,1753823439231,-467.31895115,0.00019011,2]
[376018318,1753823439240,-460.0,0.00019012,2]
[376018319,1753823439249,-460.0,0.00019012,2]
[376018320,1753823439258,-460.0,0.00019012,2]
[376018321,1753823439267,-460.0,0.00019012,2]
[376018322,1753823439277,-460.0,0.00019012,2]
[376018323,1753823439286,-583.53890726,0.00019012,2]
[376018324,1753823439297,-496.69,0.00019012,2]
[376018325,1753823439307,-460.0,0.00019012,2]
[376018326,1753823439316,-460.0,0.00019012,2]
[376018327,1753823439325,-876.93,0.00019012,2]
[376018328,1753823439335,-203.66222036,0.00019012,2]
[376018330,1753823439344,-460.0,0.00019012,2]
[376018331,1753823439354,-776.03,0.00019012,2]
[376018332,1753823439364,-208.38750257,0.00019012,2]
[376018333,1753823439373,-460.0,0.00019013,2]
[376018334,1753823439383,-460.0,0.00019013,2]
[376018335,1753823439392,-460.0,0.00019013,2]
[376018336,1753823439402,-460.0,0.00019013,2]
[376018337,1753823439412,-460.0,0.00019013,2]
[376018338,1753823439421,-460.0,0.00019013,2]
[376018339,1753823439431,-4300.5,0.00019013,2]
[376018340,1753823439442,-936.8,0.00019013,2]
[376018341,1753823439452,-909.65,0.00019013,2]
[376018342,1753823439461,-914.91,0.00019014,2]
[376018343,1753823439470,-825.46,0.00019014,2]
[376018344,1753823439480,-1223.64,0.00019015,2]
[376018345,1753823439489,-460.0,0.00019015,2]
[376018346,1753823439502,-286.13932,0.00019178,2]
[376018347,1753823439513,-460.0,0.00019187,2]
[376018348,1753823439523,-1851.99,0.00019187,2]
[376018350,1753823439533,-460.0,0.00019187,2]
[376018352,1753823439543,-4197.13,0.00019187,2]
[376018354,1753823439553,-1495.74,0.00019187,2]
[376018356,1753823439562,-778.11,0.00019187,2]
[376018358,1753823439572,-460.0,0.00019187,2]
[376018360,1753823439582,-460.0,0.00019187,2]
[376018362,1753823439592,-994.24,0.00019187,2]
[376018364,1753823439601,-460.0,0.00019187,2]
[376018366,1753823439611,-1049.81,0.00019187,2]
[376018368,1753823439620,-472.47,0.00019187,2]
[376018370,1753823439630,-540.0,0.00019188,2]
[376018372,1753823439639,-460.0,0.00019188,2]
[376018374,1753823439648,-460.0,0.00019188,2]
[376018376,1753823439658,-513.6095809,0.00019188,2]
[376018378,1753823439667,-460.0,0.00019188,2]
[376018380,1753823439677,-460.0,0.00019188,2]
[376018382,1753823439687,-460.0,0.00019188,2]
[376018384,1753823439696,-460.0,0.00019188,2]
[376018386,1753823439706,-460.0,0.00019188,2]
[376018388,1753823439715,-562.0,0.00019188,2]
[376018390,1753823439724,-460.0,0.00019188,2]
[376018392,1753823439733,-460.0,0.00019188,2]
[376018394,1753823439744,-460.0,0.00019188,2]
[376018396,1753823439754,-306.45,0.00019188,2]
[376018398,1753823439763,-460.0,0.00019188,2]
[376018400,1753823439772,-460.0,0.00019188,2]
[376018402,1753823439781,-460.0,0.00019188,2]
[376018404,1753823439791,-460.0,0.00019188,2]
[376018406,1753823439800,-460.0,0.00019188,2]
[376018408,1753823439809,-1162.64,0.00019188,2]
[376018410,1753823439819,-1311.32,0.00019188,2]
[376018412,1753823439828,-460.0,0.00019188,2]
[376018414,1753823439837,-5788.68988261,0.00019248,2]
[376018416,1753823439851,-6848.4373316,0.00019248,2]
[376018418,1753823439869,-160.0,0.00019248,2]
[376018420,1753823439879,-841.06558547,0.00019248,2]
[376018422,1753823439888,-160.0,0.00019248,2]
[376018424,1753823439897,-160.0,0.00019248,2]
[376018426,1753823439907,-526.67226028,0.00019248,2]
[376018428,1753823439916,-460.5085953,0.00019248,2]
[376018430,1753823439925,-231.39372452,0.00019248,2]
[376018433,1753823439935,-214.91980558,0.00019248,2]
[376018435,1753823439944,-216.1031716,0.00019248,2]
[376018437,1753823439954,-479.11543137,0.00019285,2]
[376018440,1753823439963,-460.0,0.00019286,2]
[376018441,1753823439972,-460.0,0.00019286,2]
[376018443,1753823439982,-192.65558894,0.00019286,2]
[376018445,1753823439992,-460.0,0.00019286,2]
[376018447,1753823440001,-496.69,0.00019286,2]
[376018449,1753823440011,-421.47684066,0.00019286,2]
[376018453,1753823440034,-455.45315934,0.00019286,2]
[376018455,1753823440043,-460.0,0.00019286,2]
[376018457,1753823440053,-776.03,0.00019286,2]
[376018459,1753823440063,-460.0,0.00019287,2]
[376018461,1753823440073,-460.0,0.00019287,2]
[376018463,1753823440082,-460.0,0.00019287,2]
[376018465,1753823440091,-460.0,0.00019287,2]
[376018467,1753823440101,-471.66945832,0.00019287,2]
[376018469,1753823440110,-4300.5,0.00019287,2]
[376018471,1753823440120,-936.8,0.00019287,2]
[376018473,1753823440133,-909.65,0.00019287,2]
[376018475,1753823440142,-914.91,0.00019288,2]
[376018477,1753823440151,-825.46,0.00019288,2]
[376018479,1753823440161,-1223.64,0.00019289,2]
[376018481,1753823440170,-460.0,0.00019289,2]
[376018483,1753823440180,-200.0,0.0001929,15]
[376018485,1753823440189,-200.0,0.0001929,15]
[376018487,1753823440201,-200.0,0.0001929,15]
[376018489,1753823440211,-200.0,0.0001929,15]
[376018491,1753823440220,-1851.99,0.00019461,2]
[376018493,1753823440229,-460.0,0.00019461,2]
[376018495,1753823440238,-4197.13,0.00019461,2]
[376018497,1753823440248,-1495.74,0.00019461,2]
[376018499,1753823440257,-778.11,0.00019461,2]
[376018501,1753823440266,-460.0,0.00019461,2]
[376018503,1753823440276,-460.0,0.00019461,2]
[376018505,1753823440286,-994.24,0.00019461,2]
[376018507,1753823440295,-460.0,0.00019461,2]
[376018509,1753823440305,-1049.81,0.00019461,2]